[Event "Late-Titled-Tuesday-Blitz-April-30-2024"]
[Site "Chess.com"]
[Date "2024.04.30"]
[Round "6"]
[White "TheoSlade"]
[Black "djano"]
[Result "1-0"]
[WhiteElo "2438"]
[BlackElo "2598"]
[TimeControl "180+1"]
[EndTime "15:06:14 PDT"]
[Termination "TheoSlade won by resignation"]

1. d4 {[%clk 0:03:00.9]} 1... b6 {[%clk 0:02:59]} 2. e4 {[%clk 0:03:00.7]} 2...
Bb7 {[%clk 0:02:59.1]} 3. Bd3 {[%clk 0:03:01.4]} 3... e6 {[%clk 0:02:59.2]} 4.
Nf3 {[%clk 0:03:01.9]} 4... c5 {[%clk 0:02:58.3]} 5. c3 {[%clk 0:03:02.2]} 5...
cxd4 {[%clk 0:02:58.4]} 6. cxd4 {[%clk 0:03:02.2]} 6... d5 {[%clk 0:02:59]} 7.
e5 {[%clk 0:03:01.6]} 7... Nd7 {[%clk 0:02:56.9]} 8. O-O {[%clk 0:03:01.6]} 8...
Ne7 {[%clk 0:02:56.5]} 9. Nc3 {[%clk 0:03:00.6]} 9... Ng6 {[%clk 0:02:56.3]} 10.
Bg5 {[%clk 0:02:56.9]} 10... Be7 {[%clk 0:02:56.5]} 11. Bxe7 {[%clk 0:02:56.8]}
11... Qxe7 {[%clk 0:02:57.4]} 12. Nb5 {[%clk 0:02:55]} 12... O-O {[%clk
0:02:57.2]} 13. Nd6 {[%clk 0:02:53.8]} 13... Rab8 {[%clk 0:02:56.9]} 14. Rc1
{[%clk 0:02:51.9]} 14... f5 {[%clk 0:02:25.6]} 15. Rc7 {[%clk 0:02:48.4]} 15...
Ba8 {[%clk 0:02:23.7]} 16. Qa4 {[%clk 0:02:37.7]} 16... Rfd8 {[%clk 0:02:11.2]}
17. Bb5 {[%clk 0:02:21.4]} 17... Ngf8 {[%clk 0:02:10.7]} 18. Qxa7 {[%clk
0:02:21.2]} 18... g5 {[%clk 0:01:52.4]} 19. Rfc1 {[%clk 0:02:17.6]} 19... g4
{[%clk 0:01:52.1]} 20. Ne1 {[%clk 0:02:16.5]} 20... Qg5 {[%clk 0:01:51.3]} 21.
Bxd7 {[%clk 0:01:52.7]} 21... Nxd7 {[%clk 0:01:47.5]} 22. Rxd7 {[%clk 0:01:46]}
22... Rf8 {[%clk 0:01:28.4]} 23. Rxh7 {[%clk 0:01:34.5]} 23... Rb7 {[%clk
0:01:22.4]} 24. Rxb7 {[%clk 0:01:26.7]} 24... Bxb7 {[%clk 0:01:20.9]} 25. Rc7
{[%clk 0:01:18.4]} 25... Qd2 {[%clk 0:01:15.8]} 26. Kf1 {[%clk 0:01:15.5]} 26...
Qxd4 {[%clk 0:00:46.5]} 27. Qxb7 {[%clk 0:01:12.2]} 27... Qxe5 {[%clk
0:00:46.8]} 28. Nf7 {[%clk 0:01:08.8]} 28... Qf6 {[%clk 0:00:37]} 29. Nd6 {[%clk
0:01:02.9]} 29... Qxb2 {[%clk 0:00:35.3]} 30. Rh7 {[%clk 0:00:55.3]} 30... f4
{[%clk 0:00:23.4]} 31. Ne8 {[%clk 0:00:51.2]} 31... f3 {[%clk 0:00:09.6]} 32.
Qg7+ {[%clk 0:00:51.4]} 32... Qxg7 {[%clk 0:00:08.7]} 33. Rxg7+ {[%clk
0:00:52.3]} 33... Kh8 {[%clk 0:00:09.6]} 34. Re7 {[%clk 0:00:53.2]} 34... g3
{[%clk 0:00:07.3]} 35. hxg3 {[%clk 0:00:52.6]} 35... fxg2+ {[%clk 0:00:07.5]}
36. Kxg2 {[%clk 0:00:52.6]} 36... d4 {[%clk 0:00:08.1]} 37. Rxe6 {[%clk
0:00:52.1]} 37... b5 {[%clk 0:00:07.6]} 38. Nd3 {[%clk 0:00:51.6]} 38... Kg8
{[%clk 0:00:07.1]} 39. Nd6 {[%clk 0:00:47.4]} 1-0

[Event "Late-Titled-Tuesday-Blitz-April-30-2024"]
[Site "Chess.com"]
[Date "2024.04.30"]
[Round "6"]
[White "lluiss"]
[Black "Slovineanu"]
[Result "0-1"]
[WhiteElo "2228"]
[BlackElo "2465"]
[TimeControl "180+1"]
[EndTime "15:06:15 PDT"]
[Termination "Slovineanu won by resignation"]

1. Nf3 {[%clk 0:02:58.8]} 1... Nf6 {[%clk 0:02:59.6]} 2. d4 {[%clk 0:02:57.5]}
2... e6 {[%clk 0:02:59.5]} 3. g3 {[%clk 0:02:56.9]} 3... d5 {[%clk 0:03:00]} 4.
Bg2 {[%clk 0:02:56.6]} 4... Nbd7 {[%clk 0:03:00.2]} 5. O-O {[%clk 0:02:55.8]}
5... b5 {[%clk 0:03:00.1]} 6. a4 {[%clk 0:02:55]} 6... b4 {[%clk 0:02:59.1]} 7.
c4 {[%clk 0:02:50.6]} 7... dxc4 {[%clk 0:02:58.9]} 8. Ne5 {[%clk 0:02:49.7]}
8... Ba6 {[%clk 0:02:59]} 9. Nc6 {[%clk 0:02:25.2]} 9... Qc8 {[%clk 0:02:57.4]}
10. Nxb4 {[%clk 0:02:25.4]} 10... Bxb4 {[%clk 0:02:55]} 11. Bxa8 {[%clk
0:02:19.2]} 11... Qxa8 {[%clk 0:02:54.6]} 12. Nc3 {[%clk 0:02:18.5]} 12... O-O
{[%clk 0:02:52.3]} 13. Nb5 {[%clk 0:02:13.7]} 13... Qb7 {[%clk 0:02:10.9]} 14.
Bf4 {[%clk 0:02:11.4]} 14... Nd5 {[%clk 0:02:05.5]} 15. Bd2 {[%clk 0:01:59.2]}
15... c5 {[%clk 0:01:17.8]} 16. dxc5 {[%clk 0:01:07]} 16... Bxc5 {[%clk
0:01:14.9]} 17. Qc2 {[%clk 0:00:57.6]} 17... Bxb5 {[%clk 0:01:11.9]} 18. axb5
{[%clk 0:00:57.1]} 18... Qxb5 {[%clk 0:01:12.1]} 19. Rfc1 {[%clk 0:00:50.3]}
19... N7f6 {[%clk 0:00:59]} 20. Ra5 {[%clk 0:00:42.9]} 20... Qb6 {[%clk
0:00:54.2]} 21. e3 {[%clk 0:00:37.6]} 21... Bb4 {[%clk 0:00:51.3]} 22. Bxb4
{[%clk 0:00:33.7]} 22... Qxb4 {[%clk 0:00:51.2]} 23. Ra4 {[%clk 0:00:34.6]}
23... Qb7 {[%clk 0:00:40.6]} 24. Rxc4 {[%clk 0:00:34.1]} 24... h5 {[%clk
0:00:39.2]} 25. e4 {[%clk 0:00:30.9]} 25... Nb6 {[%clk 0:00:37.4]} 26. Rc7
{[%clk 0:00:30.1]} 26... Qxe4 {[%clk 0:00:37.6]} 27. Qxe4 {[%clk 0:00:29.2]}
27... Nxe4 {[%clk 0:00:37.6]} 28. Rxa7 {[%clk 0:00:30.1]} 28... Nd5 {[%clk
0:00:31.1]} 29. Kg2 {[%clk 0:00:24]} 29... Rb8 {[%clk 0:00:29.5]} 30. Rc2 {[%clk
0:00:17.3]} 30... g5 {[%clk 0:00:24.8]} 31. f3 {[%clk 0:00:16.3]} 31... Ne3+
{[%clk 0:00:23.8]} 0-1

[Event "Late-Titled-Tuesday-Blitz-April-30-2024"]
[Site "Chess.com"]
[Date "2024.04.30"]
[Round "6"]
[White "HamedWafa4"]
[Black "NLLO777"]
[Result "0-1"]
[WhiteElo "2718"]
[BlackElo "2562"]
[TimeControl "180+1"]
[EndTime "15:06:16 PDT"]
[Termination "NLLO777 won by resignation"]

1. e4 {[%clk 0:03:00.9]} 1... c5 {[%clk 0:02:59.6]} 2. Nf3 {[%clk 0:02:55.5]}
2... d6 {[%clk 0:02:59.4]} 3. Bb5+ {[%clk 0:02:55.1]} 3... Nd7 {[%clk
0:02:58.8]} 4. O-O {[%clk 0:02:53.8]} 4... a6 {[%clk 0:02:58.8]} 5. Be2 {[%clk
0:02:53.1]} 5... Ngf6 {[%clk 0:02:58.7]} 6. d3 {[%clk 0:02:52.8]} 6... e6 {[%clk
0:02:58.2]} 7. c4 {[%clk 0:02:53.2]} 7... Be7 {[%clk 0:02:57.5]} 8. Nc3 {[%clk
0:02:53.8]} 8... O-O {[%clk 0:02:57.8]} 9. d4 {[%clk 0:02:54.1]} 9... cxd4
{[%clk 0:02:56.7]} 10. Nxd4 {[%clk 0:02:55]} 10... Qc7 {[%clk 0:02:56.2]} 11. a4
{[%clk 0:02:46.2]} 11... b6 {[%clk 0:02:55.8]} 12. Re1 {[%clk 0:02:45.3]} 12...
Bb7 {[%clk 0:02:55.5]} 13. Bf1 {[%clk 0:02:44.9]} 13... Rac8 {[%clk 0:02:42.2]}
14. b3 {[%clk 0:02:44.8]} 14... Rfd8 {[%clk 0:02:40.6]} 15. Bb2 {[%clk
0:02:43.2]} 15... h6 {[%clk 0:02:31.9]} 16. Rc1 {[%clk 0:02:27.1]} 16... Nc5
{[%clk 0:02:19.7]} 17. Qc2 {[%clk 0:02:17]} 17... Qb8 {[%clk 0:02:11.8]} 18. g3
{[%clk 0:02:15.8]} 18... Qa8 {[%clk 0:02:07.1]} 19. Bg2 {[%clk 0:02:16]} 19...
Bf8 {[%clk 0:01:46]} 20. Rcd1 {[%clk 0:02:10.2]} 20... d5 {[%clk 0:01:11.5]} 21.
exd5 {[%clk 0:01:42.7]} 21... exd5 {[%clk 0:01:12.4]} 22. cxd5 {[%clk 0:01:38]}
22... Nxd5 {[%clk 0:01:11]} 23. Nxd5 {[%clk 0:01:28.8]} 23... Bxd5 {[%clk
0:01:11.9]} 24. Bxd5 {[%clk 0:01:25.7]} 24... Qxd5 {[%clk 0:01:12.8]} 25. b4
{[%clk 0:01:06.3]} 25... Ne6 {[%clk 0:00:56.9]} 26. Qe2 {[%clk 0:01:03.9]} 26...
Qc4 {[%clk 0:00:19.7]} 27. Nxe6 {[%clk 0:00:39.6]} 27... Qxe2 {[%clk 0:00:15.6]}
28. Rb1 {[%clk 0:00:35.1]} 28... Qxe6 {[%clk 0:00:13.6]} 29. Rxe6 {[%clk
0:00:34.8]} 29... fxe6 {[%clk 0:00:14.5]} 30. Be5 {[%clk 0:00:35]} 30... Rd2
{[%clk 0:00:14.1]} 31. Bf4 {[%clk 0:00:32]} 31... Ra2 {[%clk 0:00:13.1]} 32. Re1
{[%clk 0:00:31.8]} 32... Kf7 {[%clk 0:00:12.7]} 33. b5 {[%clk 0:00:31.6]} 33...
axb5 {[%clk 0:00:12.6]} 34. axb5 {[%clk 0:00:32.5]} 34... Rcc2 {[%clk
0:00:12.9]} 35. Be3 {[%clk 0:00:32.6]} 35... Bc5 {[%clk 0:00:13.4]} 0-1

[Event "Late-Titled-Tuesday-Blitz-April-30-2024"]
[Site "Chess.com"]
[Date "2024.04.30"]
[Round "6"]
[White "RuperezA"]
[Black "kalinchick"]
[Result "1-0"]
[WhiteElo "2617"]
[BlackElo "2474"]
[TimeControl "180+1"]
[EndTime "15:06:19 PDT"]
[Termination "RuperezA won on time"]

1. e4 {[%clk 0:02:59.1]} 1... e6 {[%clk 0:03:00.9]} 2. b3 {[%clk 0:02:54.6]}
2... d5 {[%clk 0:03:01.8]} 3. Bb2 {[%clk 0:02:52.3]} 3... dxe4 {[%clk
0:03:02.2]} 4. Nc3 {[%clk 0:02:51.9]} 4... Nf6 {[%clk 0:02:50.4]} 5. Qe2 {[%clk
0:02:51.4]} 5... Be7 {[%clk 0:02:49.8]} 6. Nxe4 {[%clk 0:02:50.3]} 6... Nxe4
{[%clk 0:02:50.7]} 7. Qxe4 {[%clk 0:02:50.7]} 7... Bf6 {[%clk 0:02:50.9]} 8. d4
{[%clk 0:02:46.1]} 8... Qd5 {[%clk 0:02:45.5]} 9. Qe3 {[%clk 0:02:45.5]} 9...
Nc6 {[%clk 0:02:36.2]} 10. Nf3 {[%clk 0:02:44.4]} 10... O-O {[%clk 0:02:32.8]}
11. O-O-O {[%clk 0:02:42.9]} 11... Qa5 {[%clk 0:02:28]} 12. Kb1 {[%clk
0:02:40.3]} 12... b5 {[%clk 0:02:16.3]} 13. h4 {[%clk 0:02:29.1]} 13... b4
{[%clk 0:02:15.2]} 14. Bd3 {[%clk 0:02:20.2]} 14... Ba6 {[%clk 0:02:14]} 15. Be4
{[%clk 0:02:19.2]} 15... Ne7 {[%clk 0:02:09.8]} 16. Ng5 {[%clk 0:02:17.4]} 16...
Nf5 {[%clk 0:02:00.2]} 17. Qf3 {[%clk 0:01:55.6]} 17... Rad8 {[%clk 0:01:59.6]}
18. g4 {[%clk 0:01:54.5]} 18... Nxd4 {[%clk 0:01:31.4]} 19. Bxh7+ {[%clk
0:01:48.8]} 19... Kh8 {[%clk 0:01:30.3]} 20. Qe3 {[%clk 0:01:43.5]} 20... Qe5
{[%clk 0:01:18.6]} 21. Be4 {[%clk 0:01:39.5]} 21... c5 {[%clk 0:01:06.2]} 22.
Nf3 {[%clk 0:01:25.4]} 22... Qc7 {[%clk 0:00:45.2]} 23. g5 {[%clk 0:01:25.6]}
23... Be5 {[%clk 0:00:38.8]} 24. Nxe5 {[%clk 0:01:16.1]} 24... Qxe5 {[%clk
0:00:39.7]} 25. f4 {[%clk 0:01:15.8]} 25... Nf5 {[%clk 0:00:17.4]} 26. Qf3
{[%clk 0:01:11.8]} 26... Qc7 {[%clk 0:00:17.4]} 27. h5 {[%clk 0:01:05]} 27...
Kg8 {[%clk 0:00:16]} 28. h6 {[%clk 0:01:04.4]} 28... Nd4 {[%clk 0:00:12.8]} 29.
Bxd4 {[%clk 0:00:58.4]} 29... Rxd4 {[%clk 0:00:13.7]} 30. Rxd4 {[%clk
0:00:58.4]} 30... cxd4 {[%clk 0:00:14]} 31. hxg7 {[%clk 0:00:59.3]} 31... Rc8
{[%clk 0:00:13.2]} 32. Qh5 {[%clk 0:00:54.2]} 32... f5 {[%clk 0:00:12.7]} 33.
gxf6 {[%clk 0:00:51.5]} 33... Qxf4 {[%clk 0:00:06.9]} 34. Qh7+ {[%clk
0:00:51.2]} 34... Kf7 {[%clk 0:00:07.7]} 35. g8=Q+ {[%clk 0:00:52.1]} 35... Kxf6
{[%clk 0:00:07.6]} 36. Qgg6+ {[%clk 0:00:48.9]} 36... Ke5 {[%clk 0:00:08.5]} 37.
Qd7 {[%clk 0:00:44.3]} 1-0

[Event "Late-Titled-Tuesday-Blitz-April-30-2024"]
[Site "Chess.com"]
[Date "2024.04.30"]
[Round "6"]
[White "Legendinunknown"]
[Black "FredddieCroderg"]
[Result "1-0"]
[WhiteElo "2806"]
[BlackElo "2449"]
[TimeControl "180+1"]
[EndTime "15:06:23 PDT"]
[Termination "Legendinunknown won on time"]

1. e4 {[%clk 0:03:00.9]} 1... c6 {[%clk 0:02:58.5]} 2. Nc3 {[%clk 0:03:00.6]}
2... d5 {[%clk 0:02:58.5]} 3. Nf3 {[%clk 0:03:01.1]} 3... Bg4 {[%clk 0:02:57.4]}
4. h3 {[%clk 0:03:00.9]} 4... Bh5 {[%clk 0:02:57.1]} 5. exd5 {[%clk 0:02:58]}
5... cxd5 {[%clk 0:02:57.2]} 6. Bb5+ {[%clk 0:02:58.3]} 6... Nc6 {[%clk
0:02:56.7]} 7. g4 {[%clk 0:02:55.2]} 7... Bg6 {[%clk 0:02:56.8]} 8. Ne5 {[%clk
0:02:55.7]} 8... Rc8 {[%clk 0:02:56.7]} 9. d4 {[%clk 0:02:55]} 9... e6 {[%clk
0:02:56.8]} 10. h4 {[%clk 0:02:51]} 10... f6 {[%clk 0:02:56.7]} 11. Nxg6 {[%clk
0:02:48.6]} 11... hxg6 {[%clk 0:02:57.6]} 12. Be3 {[%clk 0:02:48.9]} 12... Bb4
{[%clk 0:02:51.8]} 13. Bd3 {[%clk 0:02:40.4]} 13... f5 {[%clk 0:02:49.4]} 14.
Bg5 {[%clk 0:02:25.9]} 14... Be7 {[%clk 0:02:39.2]} 15. gxf5 {[%clk 0:02:15.8]}
15... Bxg5 {[%clk 0:02:35.3]} 16. fxe6 {[%clk 0:02:12.8]} 16... Rxh4 {[%clk
0:02:26.3]} 17. Bxg6+ {[%clk 0:02:11.5]} 17... Ke7 {[%clk 0:02:14.1]} 18. Rxh4
{[%clk 0:02:10.2]} 18... Bxh4 {[%clk 0:02:13.8]} 19. Qh5 {[%clk 0:02:09]} 19...
Bf6 {[%clk 0:02:09.5]} 20. Nxd5+ {[%clk 0:01:53.2]} 20... Kxe6 {[%clk
0:02:03.9]} 21. Bf5+ {[%clk 0:01:38.7]} 21... Kxd5 {[%clk 0:01:54.7]} 22. Bxc8+
{[%clk 0:01:37.3]} 22... Kd6 {[%clk 0:01:53.6]} 23. Qh2+ {[%clk 0:01:28.7]}
23... Ke7 {[%clk 0:01:48.4]} 24. Bxb7 {[%clk 0:01:26.1]} 24... Nxd4 {[%clk
0:01:31.7]} 25. Qh7 {[%clk 0:01:21.2]} 25... Nh6 {[%clk 0:01:19.7]} 26. Qe4+
{[%clk 0:01:18]} 26... Kf8 {[%clk 0:01:17.8]} 27. O-O-O {[%clk 0:01:12.1]} 27...
Qb6 {[%clk 0:00:48.2]} 28. c3 {[%clk 0:00:59.8]} 28... Ne6 {[%clk 0:00:35.8]}
29. Bd5 {[%clk 0:00:57.1]} 29... Nc5 {[%clk 0:00:33.7]} 30. Qf4 {[%clk
0:00:47.9]} 30... Qb5 {[%clk 0:00:23.3]} 31. Bc4 {[%clk 0:00:40]} 31... Qb6
{[%clk 0:00:04.9]} 32. Rd6 {[%clk 0:00:36.7]} 32... Qc7 {[%clk 0:00:01.7]} 33.
Rxf6+ {[%clk 0:00:36.6]} 1-0

[Event "Late-Titled-Tuesday-Blitz-April-30-2024"]
[Site "Chess.com"]
[Date "2024.04.30"]
[Round "6"]
[White "english_player_89"]
[Black "BeanScreen"]
[Result "0-1"]
[WhiteElo "2533"]
[BlackElo "2688"]
[TimeControl "180+1"]
[EndTime "15:06:23 PDT"]
[Termination "BeanScreen won by resignation"]

1. e4 {[%clk 0:03:00.9]} 1... e5 {[%clk 0:02:59.8]} 2. Nf3 {[%clk 0:03:00.8]}
2... Nc6 {[%clk 0:03:00.4]} 3. Bc4 {[%clk 0:03:01.2]} 3... Nf6 {[%clk
0:03:00.1]} 4. d3 {[%clk 0:03:00.6]} 4... Be7 {[%clk 0:03:00.3]} 5. O-O {[%clk
0:03:00.1]} 5... O-O {[%clk 0:03:00.3]} 6. c3 {[%clk 0:02:58.9]} 6... d5 {[%clk
0:03:00.2]} 7. exd5 {[%clk 0:02:59]} 7... Nxd5 {[%clk 0:03:01.1]} 8. Re1 {[%clk
0:02:59]} 8... Bg4 {[%clk 0:03:00.1]} 9. h3 {[%clk 0:02:59.5]} 9... Bh5 {[%clk
0:03:00.3]} 10. Nbd2 {[%clk 0:02:59.9]} 10... a6 {[%clk 0:02:59.9]} 11. Ne4
{[%clk 0:02:59.6]} 11... Nb6 {[%clk 0:02:57.5]} 12. Bb3 {[%clk 0:02:58.9]} 12...
Kh8 {[%clk 0:02:56.1]} 13. Ng3 {[%clk 0:02:55.9]} 13... Bxf3 {[%clk 0:02:56.3]}
14. Qxf3 {[%clk 0:02:55.7]} 14... f5 {[%clk 0:02:57]} 15. a4 {[%clk 0:02:29.7]}
15... a5 {[%clk 0:02:39.3]} 16. Bc2 {[%clk 0:02:28.3]} 16... Bg5 {[%clk
0:02:16.1]} 17. Qh5 {[%clk 0:02:04]} 17... Bxc1 {[%clk 0:02:09.1]} 18. Raxc1
{[%clk 0:02:04.9]} 18... Nd5 {[%clk 0:02:04.4]} 19. Ne2 {[%clk 0:01:59.9]} 19...
g6 {[%clk 0:01:43.8]} 20. Qf3 {[%clk 0:01:53]} 20... e4 {[%clk 0:01:09.7]} 21.
dxe4 {[%clk 0:01:50.8]} 21... Ne5 {[%clk 0:01:10]} 22. Qg3 {[%clk 0:01:44.5]}
22... f4 {[%clk 0:01:10.2]} 23. Qh2 {[%clk 0:01:39]} 23... Qg5 {[%clk
0:01:10.1]} 24. Kh1 {[%clk 0:01:30.5]} 24... f3 {[%clk 0:01:05.4]} 25. exd5
{[%clk 0:01:25.8]} 25... fxe2 {[%clk 0:01:05.2]} 26. h4 {[%clk 0:00:59.8]} 26...
Qh5 {[%clk 0:00:56.9]} 27. f3 {[%clk 0:00:58.9]} 27... Rae8 {[%clk 0:00:43.7]}
28. Be4 {[%clk 0:00:52.6]} 28... Qh6 {[%clk 0:00:37.8]} 29. Rc2 {[%clk
0:00:48.3]} 29... Ng4 {[%clk 0:00:37]} 30. Qg3 {[%clk 0:00:40.1]} 30... Nf2+
{[%clk 0:00:35.4]} 31. Qxf2 {[%clk 0:00:37.5]} 31... Rxe4 {[%clk 0:00:35.2]} 32.
Rcxe2 {[%clk 0:00:35.1]} 32... Rxh4+ {[%clk 0:00:35]} 33. Qxh4 {[%clk
0:00:20.1]} 33... Qxh4+ {[%clk 0:00:35.9]} 34. Kg1 {[%clk 0:00:20.7]} 34... Qg3
{[%clk 0:00:35.9]} 35. Re7 {[%clk 0:00:19]} 35... Rxf3 {[%clk 0:00:33.7]} 36. d6
{[%clk 0:00:16.4]} 36... cxd6 {[%clk 0:00:29]} 37. Rxb7 {[%clk 0:00:12.7]} 37...
Qxe1+ {[%clk 0:00:28.3]} 0-1

[Event "Late-Titled-Tuesday-Blitz-April-30-2024"]
[Site "Chess.com"]
[Date "2024.04.30"]
[Round "6"]
[White "ChristopherYoo"]
[Black "Abund"]
[Result "1-0"]
[WhiteElo "3020"]
[BlackElo "2771"]
[TimeControl "180+1"]
[EndTime "15:06:24 PDT"]
[Termination "ChristopherYoo won by checkmate"]

1. e4 {[%clk 0:03:00.9]} 1... c6 {[%clk 0:02:59.9]} 2. Nf3 {[%clk 0:03:00.8]}
2... d5 {[%clk 0:03:00.8]} 3. Nc3 {[%clk 0:03:01.2]} 3... dxe4 {[%clk 0:03:01]}
4. Nxe4 {[%clk 0:03:01.4]} 4... Nf6 {[%clk 0:03:01.7]} 5. Qe2 {[%clk 0:03:01.9]}
5... Nxe4 {[%clk 0:03:01.8]} 6. Qxe4 {[%clk 0:03:02.8]} 6... Nd7 {[%clk
0:03:02.5]} 7. Bc4 {[%clk 0:03:02.3]} 7... Nf6 {[%clk 0:03:03.1]} 8. Ne5 {[%clk
0:03:02.4]} 8... e6 {[%clk 0:03:03.7]} 9. Qe2 {[%clk 0:03:02.1]} 9... b5 {[%clk
0:03:04.3]} 10. Bd3 {[%clk 0:03:01.9]} 10... Qc7 {[%clk 0:03:03.5]} 11. a4
{[%clk 0:03:00.1]} 11... Bd6 {[%clk 0:02:57.9]} 12. Nxc6 {[%clk 0:02:58.3]}
12... b4 {[%clk 0:02:48.8]} 13. Nd4 {[%clk 0:02:58.3]} 13... a6 {[%clk 0:02:36]}
14. Nf5 {[%clk 0:02:56.8]} 14... Bb7 {[%clk 0:02:19.8]} 15. Nxd6+ {[%clk
0:02:54.7]} 15... Qxd6 {[%clk 0:02:20.2]} 16. O-O {[%clk 0:02:43]} 16... h5
{[%clk 0:02:20.3]} 17. f3 {[%clk 0:02:41.9]} 17... h4 {[%clk 0:02:04.3]} 18. Qf2
{[%clk 0:02:40]} 18... h3 {[%clk 0:02:00.2]} 19. g3 {[%clk 0:02:39.3]} 19... b3
{[%clk 0:01:30.3]} 20. Ra3 {[%clk 0:02:34.8]} 20... bxc2 {[%clk 0:01:29.1]} 21.
Bxc2 {[%clk 0:02:35.7]} 21... O-O {[%clk 0:01:15.6]} 22. d4 {[%clk 0:02:35.8]}
22... Rac8 {[%clk 0:01:11.8]} 23. Bf4 {[%clk 0:02:35.3]} 23... Qb4 {[%clk
0:01:09.4]} 24. Bd1 {[%clk 0:01:39.5]} 24... Nd5 {[%clk 0:01:02.7]} 25. Rb3
{[%clk 0:01:38.5]} 25... Qe7 {[%clk 0:01:01.7]} 26. Bd2 {[%clk 0:01:38.4]} 26...
Bc6 {[%clk 0:00:59.6]} 27. Rd3 {[%clk 0:01:34.8]} 27... Qb7 {[%clk 0:00:55.8]}
28. b3 {[%clk 0:01:34.1]} 28... Rfd8 {[%clk 0:00:50]} 29. Ba5 {[%clk 0:01:24.3]}
29... Rd7 {[%clk 0:00:49.2]} 30. Qd2 {[%clk 0:01:23.8]} 30... Ne7 {[%clk
0:00:43.9]} 31. Bb4 {[%clk 0:01:19.2]} 31... Nf5 {[%clk 0:00:41.1]} 32. Bc5
{[%clk 0:01:18.8]} 32... Rcd8 {[%clk 0:00:38.6]} 33. Re1 {[%clk 0:01:13.8]}
33... Qa8 {[%clk 0:00:32.5]} 34. Qf2 {[%clk 0:01:03.1]} 34... Qb7 {[%clk
0:00:30.2]} 35. b4 {[%clk 0:00:55]} 35... Rd5 {[%clk 0:00:28.3]} 36. g4 {[%clk
0:00:52.7]} 36... Nh6 {[%clk 0:00:22.7]} 37. Qh4 {[%clk 0:00:51.3]} 37... e5
{[%clk 0:00:20.3]} 38. Bb3 {[%clk 0:00:45.8]} 38... R5d7 {[%clk 0:00:18.9]} 39.
g5 {[%clk 0:00:45.5]} 39... Nf5 {[%clk 0:00:18.5]} 40. Qh5 {[%clk 0:00:43.2]}
40... Nxd4 {[%clk 0:00:16.3]} 41. g6 {[%clk 0:00:42.7]} 41... Nxb3 {[%clk
0:00:15.9]} 42. Qh7# {[%clk 0:00:41.5]} 1-0

[Event "Late-Titled-Tuesday-Blitz-April-30-2024"]
[Site "Chess.com"]
[Date "2024.04.30"]
[Round "6"]
[White "rikchessmx"]
[Black "sillypiggy2024"]
[Result "1-0"]
[WhiteElo "2266"]
[BlackElo "1734"]
[TimeControl "180+1"]
[EndTime "15:06:25 PDT"]
[Termination "rikchessmx won on time"]

1. e4 {[%clk 0:02:53.1]} 1... c6 {[%clk 0:02:58.5]} 2. d4 {[%clk 0:02:52.8]}
2... d5 {[%clk 0:02:57.8]} 3. Nc3 {[%clk 0:02:53.7]} 3... dxe4 {[%clk
0:02:57.6]} 4. Nxe4 {[%clk 0:02:53.2]} 4... Bf5 {[%clk 0:02:58]} 5. Ng3 {[%clk
0:02:51.7]} 5... Bg6 {[%clk 0:02:58.1]} 6. h4 {[%clk 0:02:52.3]} 6... h6 {[%clk
0:02:57.9]} 7. Nf3 {[%clk 0:02:50]} 7... Nd7 {[%clk 0:02:57.3]} 8. Bc4 {[%clk
0:02:49.4]} 8... e6 {[%clk 0:02:54]} 9. Qe2 {[%clk 0:02:48]} 9... Ngf6 {[%clk
0:02:51.3]} 10. Bb3 {[%clk 0:02:48]} 10... Be7 {[%clk 0:02:49.1]} 11. Bf4 {[%clk
0:02:46.2]} 11... b5 {[%clk 0:02:40.8]} 12. h5 {[%clk 0:02:43.3]} 12... Bh7
{[%clk 0:02:39.2]} 13. O-O-O {[%clk 0:02:42.5]} 13... a5 {[%clk 0:02:33.4]} 14.
a3 {[%clk 0:02:39.2]} 14... a4 {[%clk 0:02:23.2]} 15. Ba2 {[%clk 0:02:38.7]}
15... b4 {[%clk 0:02:21.1]} 16. axb4 {[%clk 0:02:38.6]} 16... Bxb4 {[%clk
0:02:14.9]} 17. Qc4 {[%clk 0:02:25]} 17... Qb6 {[%clk 0:02:07.7]} 18. Ne5 {[%clk
0:02:18.7]} 18... Nxe5 {[%clk 0:01:38.6]} 19. Bxe5 {[%clk 0:02:17.5]} 19... Nd5
{[%clk 0:01:37.3]} 20. c3 {[%clk 0:01:53]} 20... Be7 {[%clk 0:01:32.9]} 21. Ne2
{[%clk 0:01:38.1]} 21... O-O {[%clk 0:01:24.2]} 22. Bb1 {[%clk 0:01:30.1]} 22...
Bxb1 {[%clk 0:01:20.9]} 23. Kxb1 {[%clk 0:01:30]} 23... a3 {[%clk 0:01:14.3]}
24. b4 {[%clk 0:01:29.5]} 24... a2+ {[%clk 0:01:12.1]} 25. Ka1 {[%clk
0:01:29.2]} 25... Ra4 {[%clk 0:01:01]} 26. Rh3 {[%clk 0:01:22.7]} 26... Rfa8
{[%clk 0:00:52]} 27. Rg3 {[%clk 0:01:14.9]} 27... Bf8 {[%clk 0:00:50.6]} 28. Qb3
{[%clk 0:01:02.8]} 28... Ra3 {[%clk 0:00:46.4]} 29. Qb2 {[%clk 0:01:03]} 29...
Qb5 {[%clk 0:00:41.7]} 30. Nc1 {[%clk 0:00:57.2]} 30... Qa4 {[%clk 0:00:36.7]}
31. Rdd3 {[%clk 0:00:56]} 31... f6 {[%clk 0:00:16.4]} 32. c4 {[%clk 0:00:46.1]}
32... Nxb4 {[%clk 0:00:12.1]} 33. Rxa3 {[%clk 0:00:43.3]} 33... Qxa3 {[%clk
0:00:09.2]} 34. Rxa3 {[%clk 0:00:41]} 34... Rxa3 {[%clk 0:00:07.5]} 35. Bf4
{[%clk 0:00:38.8]} 35... Ra6 {[%clk 0:00:02.5]} 36. c5 {[%clk 0:00:37.7]} 36...
Nd5 {[%clk 0:00:01.4]} 37. Bd2 {[%clk 0:00:37.4]} 1-0